bitfinex/quotes_BTCUSD_20220211
["timestamp","ask_amount","ask_price","bid_price","bid_amount"]
[1644546311886,0.33155295,42970.0,42967.0,0.15]
[1644546312183,0.0005962,42970.0,42967.0,0.15]
[1644546312483,0.0005962,42970.0,42966.0,0.1]
[1644546312684,0.0005962,42970.0,42966.0,0.05]
[1644546312984,0.20180675,42975.0,42966.0,0.05]
[1644546313184,0.0005962,42970.0,42966.0,0.05]
[1644546314085,0.0005962,42970.0,42964.0,0.23]
[1644546314086,0.26164668,42971.0,42964.0,0.28]
[1644546314484,0.0005962,42970.0,42964.0,0.28]
[1644546315236,0.29154422,42974.0,42964.0,0.28]
[1644546315436,0.26002675,42975.0,42964.0,0.28]
[1644546315636,0.00059651,42969.0,42964.0,0.28]
[1644546315835,0.00059651,42969.0,42966.0,0.046304]
[1644546316036,0.00059651,42969.0,42967.0,0.32643]
[1644546316237,0.00059651,42969.0,42968.0,0.046301]
[1644546316436,0.25085508,42972.0,42967.0,0.15]
[1644546316640,0.26002675,42975.0,42967.0,0.15]
[1644546316843,0.0005965,42970.0,42967.0,0.15]
[1644546317040,0.0005965,42970.0,42968.0,0.326447]
[1644546317541,0.0005965,42970.0,42968.0,0.426447]
[1644546317743,0.25975387,42974.0,42968.0,0.1]
[1644546317941,0.0005965,42971.0,42964.0,0.23]
[1644546318143,0.0005965,42971.0,42965.0,0.1]
[1644546318341,0.0005965,42971.0,42964.0,0.28]
[1644546318990,0.38818942,42973.0,42964.0,0.28]
[1644546319291,0.00059427,42970.0,42966.0,0.326447]
[1644546319688,0.00059427,42970.0,42966.0,0.426447]
[1644546319888,0.00059427,42970.0,42967.0,0.046294]
[1644546320089,0.00027349,42975.0,42967.0,0.046294]
[1644546320289,0.00027349,42976.0,42966.0,0.15]
[1644546320490,0.00059427,42970.0,42967.0,0.326447]
[1644546320889,0.00059427,42970.0,42968.0,0.046284]
[1644546321091,0.00059427,42970.0,42967.0,0.15]
[1644546321288,0.33168142,42971.0,42967.0,0.15]
[1644546321590,0.33200219,42971.0,42967.0,0.15]
[1644546321789,0.33200219,42971.0,42967.0,0.05]
[1644546322189,0.33200219,42971.0,42964.0,0.28]
[1644546322388,0.33200219,42971.0,42964.0,0.38]
[1644546322634,0.33140793,42971.0,42965.0,0.5]
[1644546322835,0.33200443,42971.0,42965.0,0.6]
[1644546323636,0.33140793,42971.0,42965.0,0.6]
[1644546324039,0.0005965,42970.0,42966.0,0.326447]
[1644546324237,0.00086999,42970.0,42966.0,0.376447]
[1644546324437,0.0005965,42970.0,42967.0,0.046293]
[1644546324838,0.33844882,42974.0,42967.0,0.046293]
[1644546324839,0.00027349,42972.0,42967.0,0.046293]
[1644546325039,0.00027349,42972.0,42967.0,0.326447]
[1644546325242,0.00047685,42971.0,42967.0,0.326447]
[1644546325440,0.00047685,42971.0,42967.0,0.1]
[1644546326043,0.00027349,42973.0,42967.0,0.1]
[1644546326388,0.00059683,42971.0,42966.0,0.05]
[1644546326784,0.00087032,42971.0,42965.0,0.65]
[1644546327384,0.00027349,42971.0,42965.0,0.64991991]
[1644546327585,0.00059684,42970.0,42965.0,0.70813291]
[1644546327884,0.00059684,42970.0,42966.0,0.326447]
[1644546328284,0.00059684,42970.0,42966.0,0.426447]
[1644546328486,0.00027349,42971.0,42966.0,0.426447]
[1644546328685,0.28927434,42972.0,42966.0,0.426447]
[1644546328886,0.00059684,42970.0,42966.0,0.426447]
[1644546329692,0.00027349,42973.0,42966.0,0.426447]
[1644546329890,0.00059684,42970.0,42966.0,0.1]
[1644546330134,0.00059684,42970.0,42967.0,0.326447]
[1644546330335,0.00059684,42970.0,42967.0,0.1]
[1644546330937,0.00027349,42973.0,42968.0,0.326447]
[1644546331138,0.01,42979.0,42969.0,0.55]
[1644546331139,0.00087033,42971.0,42969.0,0.55]
[1644546331336,0.00059684,42971.0,42970.0,0.092774]
[1644546332240,0.00027349,42976.0,42972.0,0.326414]
[1644546332439,0.00059683,42973.0,42972.0,0.426414]
[1644546332637,0.00059683,42973.0,42972.0,0.476414]
[1644546333237,0.00027349,42978.0,42972.0,1.03462]
[1644546333439,0.00027349,42976.0,42972.0,0.976414]
[1644546333637,0.00059682,42975.0,42973.0,0.046266]
[1644546334486,0.00027349,42978.0,42974.0,0.5]
[1644546334688,0.01,42979.0,42975.0,0.32639]
[1644546334889,0.00059682,42976.0,42975.0,0.42639]
[1644546335786,0.00027349,42978.0,42975.0,0.42639]
[1644546335987,0.416407,42987.0,42979.0,0.95]
[1644546336189,0.3634,43006.0,42979.0,0.95]
[1644546336190,0.4044,42999.0,42980.0,0.3965]
[1644546336386,0.000274,42987.0,42981.0,0.326447]
[1644546336586,0.01,42999.0,42984.0,0.16249322]
[1644546336587,0.000274,42998.0,42984.0,0.16249322]
[1644546336787,0.000274,42988.0,42986.0,0.826406]
[1644546336987,0.01,42999.0,42988.0,0.046133]
[1644546336988,0.000274,42997.0,42988.0,0.046133]
[1644546337187,0.010274,42989.0,42988.0,0.092633]
[1644546337390,0.01,42989.0,42988.0,0.092633]
[1644546337633,0.01,42989.0,42988.0,0.142633]
[1644546337833,0.01,42989.0,42988.0,0.642633]
[1644546338035,0.01,42989.0,42988.0,0.592633]
[1644546338237,0.01,42989.0,42988.0,0.692633]
[1644546338435,0.01,42989.0,42988.0,1.00203977]
[1644546338636,0.01,42989.0,42988.0,0.692633]
[1644546339435,0.01,42989.0,42988.0,0.6465]
[1644546339840,0.01,42989.0,42988.0,1.2841767]
[1644546340039,0.01,42989.0,42988.0,1.3341767]
[1644546340240,0.000274,42993.0,42989.0,0.95]
[1644546340441,0.42,43008.0,42992.0,0.442753]
[1644546340639,0.42,43008.0,42996.0,0.29449934]
[1644546340640,0.00027495,42998.0,42996.0,0.29449934]
[1644546340838,0.01027495,42999.0,42998.0,0.104223]
[1644546341039,0.01027495,42999.0,42998.0,0.046056]
[1644546341243,0.06,42999.0,42995.0,0.0465]
[1644546341491,0.06,42999.0,42997.0,0.326447]
[1644546341689,0.01,42999.0,42997.0,0.326447]
[1644546341891,0.01,42999.0,42996.0,0.5]
[1644546342190,0.01059709,42999.0,42996.0,0.5]
[1644546342592,0.01059709,42999.0,42997.0,0.326447]
[1644546342798,0.326447,42998.0,42980.0,0.9128]
[1644546342990,0.3101031,42985.0,42984.0,0.5]
[1644546343189,0.3101031,42985.0,42984.0,0.546118]
[1644546343594,0.00027495,42993.0,42985.0,0.326436]
[1644546343790,0.00027495,42987.0,42985.0,0.326436]
[1644546343990,0.058195,42989.0,42983.0,0.046118]
[1644546344391,0.058193,42992.0,42983.0,0.046118]
[1644546344592,0.058193,42992.0,42982.0,0.00040954]
[1644546344593,0.00059712,42988.0,42982.0,0.00040954]
[1644546344793,0.00059712,42988.0,42983.0,0.23]
[1644546345242,0.00059712,42988.0,42983.0,0.28]
[1644546345539,0.00027495,42989.0,42983.0,0.28]
[1644546345738,0.75384079,42990.0,42983.0,0.28]
[1644546345939,0.00027495,42989.0,42983.0,0.28]
[1644546346137,0.75384079,42990.0,42983.0,0.28]
[1644546346337,0.00027495,42989.0,42983.0,0.28]
[1644546346538,0.75384079,42990.0,42983.0,0.28]
[1644546346739,0.00027495,42989.0,42983.0,0.28]
[1644546346939,0.70532062,42990.0,42983.0,0.28]
[1644546347139,0.00027495,42989.0,42983.0,0.28]
[1644546347339,0.76323967,42990.0,42983.0,0.28]
[1644546347539,0.00027495,42989.0,42983.0,0.28]
[1644546347744,0.76323967,42990.0,42983.0,0.28]
[1644546347745,0.76351462,42990.0,42983.0,0.28]
[1644546347941,0.00027495,42989.0,42984.0,0.0001233]
[1644546348142,0.82143667,42990.0,42984.0,0.0001233]
[1644546348341,0.00027495,42989.0,42984.0,0.0001233]
[1644546348542,0.82143667,42990.0,42984.0,0.0001233]
[1644546348742,0.00027495,42989.0,42984.0,0.0001233]
[1644546348986,0.82143667,42990.0,42983.0,0.28]
[1644546349186,0.00027495,42989.0,42984.0,0.00041101]
[1644546349387,0.82203377,42990.0,42984.0,0.00041101]
[1644546349388,0.82230872,42990.0,42984.0,0.00041101]
[1644546349586,0.00027495,42989.0,42984.0,0.00041101]
[1644546349786,0.82203377,42990.0,42984.0,0.00041101]
[1644546349987,0.00027495,42989.0,42984.0,0.00041101]
[1644546350188,0.31937096,42987.0,42983.0,0.28]
[1644546350390,0.31937096,42987.0,42984.0,0.00041101]
[1644546350391,0.058202,42987.0,42984.0,0.00041101]
[1644546350587,0.05847695,42987.0,42984.0,0.00041101]
[1644546350792,0.28536928,42990.0,42984.0,0.00041101]
[1644546350990,0.28536928,42990.0,42987.0,0.05]
[1644546351189,0.28536928,42990.0,42988.0,0.326447]
[1644546351389,0.28477218,42990.0,42988.0,0.05]
[1644546351788,0.28477218,42990.0,42987.0,0.05]
[1644546351789,0.59334727,42990.0,42987.0,0.05]
[1644546353243,0.65155127,42990.0,42987.0,0.05]
[1644546354445,0.05,42988.0,42987.0,0.05]
[1644546354645,0.05,42988.0,42984.0,0.00041101]
[1644546354646,0.46133502,42987.0,42984.0,0.00041101]
[1644546354846,0.46133502,42987.0,42983.0,0.15781101]
[1644546354847,0.05,42985.0,42983.0,0.15781101]
[1644546355046,1.63357417,42984.0,42983.0,0.15781101]
[1644546355246,0.00027555,42986.0,42983.0,0.15781101]
[1644546355445,0.80939375,42990.0,42983.0,0.15781101]
[1644546355446,0.00027555,42988.0,42983.0,0.15781101]
[1644546355650,0.19110983,42985.0,42983.0,0.15781101]
[1644546356489,0.39187769,42984.0,42983.0,0.15781101]
[1644546356688,0.44187769,42984.0,42983.0,0.15781101]
[1644546357889,0.376447,42984.0,42983.0,0.15781101]
[1644546358192,0.05,42984.0,42983.0,0.15781101]
[1644546358489,0.326447,42984.0,42983.0,0.15781101]
[1644546359088,0.376447,42984.0,42983.0,0.15781101]
[1644546359489,0.24931983,42985.0,42983.0,0.15781101]
[1644546359490,0.05821,42985.0,42983.0,0.15781101]
[1644546360248,0.376447,42984.0,42983.0,0.15781101]
[1644546360448,0.56676617,42984.0,42983.0,0.15781101]
[1644546361145,0.64523841,42984.0,42983.0,0.15781101]
[1644546361346,0.56676617,42984.0,42983.0,0.15781101]
[1644546362347,0.64711772,42984.0,42983.0,0.15781101]
[1644546362546,0.56676617,42984.0,42983.0,0.15781101]
[1644546362949,0.376447,42984.0,42983.0,0.15781101]
[1644546363148,0.326447,42984.0,42983.0,0.15781101]
[1644546367392,0.321447,42984.0,42983.0,0.15781101]
[1644546370341,0.371447,42984.0,42983.0,0.15781101]
[1644546376840,0.371447,42984.0,42983.0,0.11857701]
[1644546377044,0.371447,42984.0,42959.0,0.0011]
[1644546377045,1.09050357,42983.0,42959.0,0.0011]
[1644546377343,0.08113861,42960.0,42959.0,0.0011]
[1644546377547,0.29789452,42960.0,42959.0,0.00109648]
[1644546378341,0.326329,42959.0,42955.0,0.0011]
[1644546378542,0.376329,42957.0,42955.0,0.0011]
[1644546378740,0.0465,42956.0,42955.0,0.0011]
[1644546379590,0.326329,42954.0,42942.0,0.0022]
[1644546379790,0.326329,42954.0,42950.0,0.0007]
[1644546379791,0.40835577,42952.0,42950.0,0.0007]
[1644546379988,0.40835577,42952.0,42942.0,0.0022]
[1644546379989,1.276329,42949.0,42942.0,0.0022]
[1644546380207,0.40961453,42945.0,42942.0,0.0022]
[1644546380394,1.276329,42943.0,42937.0,0.0011]
[1644546380589,0.28605344,42938.0,42937.0,0.0011]
[1644546380789,0.28605344,42938.0,42931.0,0.011]
[1644546380790,0.326329,42937.0,42931.0,0.011]
[1644546380992,0.0465,42936.0,42931.0,0.011]
[1644546381593,0.0465,42936.0,42933.0,0.00150841]
[1644546382639,0.0465,42936.0,42933.0,0.0011]
[1644546382842,0.44127421,42936.0,42933.0,0.00150841]
[1644546383043,0.44127421,42936.0,42933.0,0.0597718]
[1644546383044,0.0465,42936.0,42933.0,0.0597718]
[1644546383440,0.0465,42936.0,42935.0,0.329629]
[1644546384041,0.0465,42936.0,42935.0,0.429629]
[1644546385144,0.0465,42936.0,42935.0,0.1033]
[1644546385642,0.0465,42936.0,42935.0,0.0533]
[1644546386043,0.0465,42936.0,42935.0,0.0033]
[1644546386243,0.0465,42936.0,42935.0,0.329629]
[1644546386492,0.0465,42936.0,42935.0,0.429629]
[1644546386692,0.0465,42936.0,42935.0,0.155051]
[1644546386898,0.0465,42936.0,42935.0,0.0033]
[1644546386899,0.372829,42936.0,42935.0,0.0033]
[1644546387091,0.0465,42936.0,42935.0,0.0033]
[1644546388093,0.0465,42936.0,42935.0,0.2333]
[1644546388893,0.372829,42936.0,42935.0,0.22961492]
[1644546389499,0.372829,42936.0,42935.0,0.27961492]
[1644546389694,0.0465,42936.0,42935.0,0.32961492]
[1644546389896,0.0465,42936.0,42935.0,0.22961492]
[1644546390138,0.372829,42936.0,42935.0,0.22961492]
[1644546390836,0.372829,42936.0,42935.0,0.11004137]
[1644546391835,0.37230156,42936.0,42935.0,0.11004137]
[1644546392637,0.65475733,42936.0,42935.0,0.11004137]
[1644546392838,0.37230156,42936.0,42935.0,0.11004137]
[1644546393036,0.64932802,42936.0,42935.0,0.11004137]
[1644546393537,0.37230156,42936.0,42935.0,0.11004137]
[1644546394991,0.64711134,42936.0,42935.0,0.11004137]
[1644546396694,0.37230156,42936.0,42935.0,0.11004137]
[1644546397296,0.64622717,42936.0,42935.0,0.11004137]
[1644546398344,0.37230156,42936.0,42935.0,0.11004137]
[1644546398546,0.15941734,42939.0,42935.0,0.48637037]
[1644546398744,0.15941734,42939.0,42935.0,0.21004137]
[1644546398946,0.33129146,42945.0,42935.0,0.21004137]
[1644546399146,0.33129146,42945.0,42935.0,0.16004137]
[1644546399147,0.4087159,42944.0,42935.0,0.16004137]
[1644546399446,0.58182393,42944.0,42935.0,0.16004137]
[1644546399648,0.326329,42942.0,42938.0,0.00040837]
[1644546400045,0.3302065,42941.0,42938.0,0.00040837]
[1644546400249,0.326329,42940.0,42938.0,0.00040837]
[1644546400747,0.48574634,42940.0,42935.0,0.11004137]
[1644546400948,0.326329,42940.0,42935.0,0.10968002]
[1644546401147,0.48574634,42940.0,42935.0,0.10968002]
[1644546401401,0.326329,42940.0,42935.0,0.10968002]
[1644546401595,0.48574634,42940.0,42935.0,0.10968002]
[1644546401795,0.326329,42940.0,42935.0,0.10968002]
[1644546402997,0.57252395,42944.0,42935.0,0.10968002]
[1644546403199,0.058267,42941.0,42935.0,0.10968002]
[1644546403899,0.326329,42940.0,42935.0,0.10968002]
[1644546404498,0.326329,42940.0,42935.0,0.1100874]
[1644546405146,0.058267,42941.0,42935.0,0.1100874]
[1644546405147,0.326329,42939.0,42935.0,0.1100874]
[1644546405347,0.058267,42941.0,42935.0,0.1100874]
[1644546405348,0.326329,42938.0,42935.0,0.1100874]
[1644546405548,0.326329,42937.0,42935.0,0.10968002]
[1644546405749,0.058267,42941.0,42935.0,0.1100874]
[1644546405951,0.326329,42940.0,42935.0,0.1100874]
[1644546406152,0.326329,42939.0,42935.0,0.1100874]
[1644546406351,0.31353127,42943.0,42935.0,0.1100874]
[1644546406550,0.326329,42942.0,42935.0,0.1100874]
[1644546406751,0.326329,42942.0,42935.0,0.10968002]
[1644546406951,0.326329,42942.0,42935.0,0.1683524]
[1644546407153,0.08552532,42937.0,42935.0,0.1100874]
[1644546407357,0.326329,42936.0,42935.0,0.1100874]
[1644546407951,0.63449712,42936.0,42935.0,0.10968002]
[1644546408151,0.69277312,42936.0,42935.0,0.10968002]
[1644546408351,0.93614061,42936.0,42935.0,0.10968002]
[1644546408752,1.22736637,42936.0,42935.0,0.10968002]
[1644546410292,0.98399888,42936.0,42935.0,0.10968002]
[1644546412397,0.384605,42936.0,42935.0,0.10968002]
[1644546412645,0.058269,42939.0,42935.0,0.10968002]
[1644546413044,0.326329,42937.0,42935.0,0.10968002]
[1644546413244,0.326403,42936.0,42935.0,0.10968002]
[1644546413445,0.30084457,42938.0,42935.0,0.10968002]
[1644546413846,0.326403,42937.0,42935.0,0.10968002]
[1644546414447,0.32618331,42937.0,42935.0,0.10968002]
[1644546414650,0.38445331,42937.0,42935.0,0.10968002]
[1644546415648,0.32618331,42937.0,42935.0,0.10968002]
[1644546415950,0.326404,42940.0,42935.0,0.22620918]
[1644546417291,0.326404,42938.0,42935.0,0.22620918]
[1644546417492,0.058264,42942.0,42935.0,0.22620918]
[1644546417695,0.116533,42944.0,42935.0,0.1100874]
[1644546417696,0.058269,42939.0,42935.0,0.1100874]
[1644546418693,0.058269,42939.0,42935.0,0.10968002]
[1644546418893,0.058269,42939.0,42935.0,0.1100874]
[1644546419800,0.058263,42943.0,42936.0,0.30066844]
[1644546419997,0.3707,42952.0,42935.0,0.2100874]
[1644546419998,0.15387579,42949.0,42935.0,0.2100874]
[1644546420245,0.64108779,42952.0,42935.0,0.2100874]
[1644546420540,0.52457579,42952.0,42937.0,0.326404]
[1644546420743,0.52457579,42952.0,42944.0,0.64737905]
[1644546420744,0.15387579,42952.0,42944.0,0.64737905]
[1644546420942,0.15387579,42952.0,42944.0,1.10774245]
[1644546421144,0.03211511,42957.0,42946.0,0.051955]
[1644546421343,0.03211511,42957.0,42944.0,1.05577845]
[1644546421344,0.03211511,42957.0,42948.0,0.326314]
[1644546421545,0.00238704,42956.0,42948.0,0.426314]
[1644546421743,0.00238704,42956.0,42950.0,0.37896184]
[1644546421943,0.00238704,42956.0,42950.0,0.43720584]
[1644546422143,0.00238704,42956.0,42952.0,0.051831]
[1644546422342,0.27416513,42957.0,42950.0,0.108244]
[1644546422544,0.058243,42956.0,42950.0,0.108244]
[1644546422747,0.058243,42956.0,42950.0,0.05]
[1644546422944,0.058243,42956.0,42949.0,0.05824477]
[1644546423143,0.058243,42956.0,42948.0,0.05]
[1644546423343,0.058243,42956.0,42947.0,0.64224574]
[1644546423543,0.058243,42956.0,42949.0,0.058245]
[1644546423745,0.058243,42956.0,42948.0,0.38465108]
[1644546423746,0.058243,42956.0,42950.0,0.110105]
[1644546423992,0.058243,42956.0,42951.0,0.32638]
[1644546424291,0.058243,42956.0,42951.0,0.05]
[1644546424493,0.058243,42956.0,42950.0,0.108247]
[1644546424691,2.14985985,42951.0,42949.0,0.058243]
[1644546424895,2.14985985,42951.0,42949.0,0.11648565]
[1644546425296,2.14985985,42951.0,42949.0,0.21648565]
[1644546427496,2.14985985,42951.0,42949.0,0.33296166]
[1644546427749,0.03211511,42957.0,42949.0,0.33296166]
[1644546427955,0.03211511,42957.0,42951.0,0.17472522]
[1644546428150,0.09035811,42957.0,42952.0,0.05183]
[1644546428349,0.09035811,42957.0,42953.0,0.326388]
[1644546428549,0.09035811,42957.0,42954.0,0.051827]
[1644546428748,0.09035811,42957.0,42949.0,0.05]
[1644546428950,0.09035811,42957.0,42950.0,0.326404]
[1644546429149,0.09035811,42957.0,42950.0,0.73722885]
[1644546429349,0.09035811,42957.0,42952.0,0.051838]
[1644546429549,0.09035811,42957.0,42950.0,0.15824236]
[1644546429748,0.09035811,42957.0,42952.0,0.051831]
[1644546429949,0.09035811,42957.0,42950.0,0.46612355]
[1644546430150,0.09035811,42957.0,42952.0,0.051831]
[1644546430352,0.09035811,42957.0,42944.0,0.76539938]
[1644546430353,0.326404,42956.0,42944.0,0.76539938]
[1644546430554,1.81309247,42951.0,42946.0,0.051889]
[1644546430753,1.81309247,42951.0,42944.0,0.64891145]
[1644546431151,1.81309247,42951.0,42947.0,0.058247]
[1644546431417,1.81309247,42951.0,42948.0,0.116485]
[1644546431812,1.81309247,42951.0,42949.0,0.1]
[1644546432611,2.10529091,42951.0,42949.0,0.1]
[1644546432811,1.81309247,42951.0,42949.0,0.1]
[1644546433611,1.81309247,42951.0,42949.0,0.33]
[1644546434113,1.81309247,42951.0,42949.0,0.38824404]
[1644546434412,0.03211511,42957.0,42949.0,0.38824404]
[1644546434613,0.03211511,42957.0,42951.0,0.058242]
[1644546434813,0.03211511,42957.0,42952.0,0.051837]
[1644546435146,0.35046226,42956.0,42950.0,0.326404]
[1644546435346,0.35046226,42956.0,42951.0,0.05824146]
[1644546435547,0.35046226,42956.0,42952.0,0.326388]
[1644546435949,0.03211511,42957.0,42952.0,0.38463]
[1644546436148,0.03211511,42957.0,42954.0,0.051836]
[1644546436347,0.03211511,42957.0,42951.0,0.52602143]
[1644546436547,0.03211511,42957.0,42953.0,0.051821]
[1644546437147,0.09035811,42957.0,42953.0,0.326404]
[1644546437348,0.09035811,42957.0,42954.0,0.326404]
[1644546437648,0.09035811,42957.0,42953.0,0.326404]
[1644546437948,0.09035811,42957.0,42953.0,0.05]
[1644546438146,0.09035811,42957.0,42952.0,0.058245]
[1644546439095,0.03211511,42957.0,42953.0,0.051805]
[1644546439294,0.03211511,42957.0,42953.0,0.101805]
[1644546439494,0.03211511,42957.0,42954.0,0.326404]
[1644546439896,0.03211511,42957.0,42954.0,0.442879]
[1644546440096,0.03211511,42957.0,42955.0,0.051801]
[1644546440395,0.03211511,42957.0,42956.0,0.326388]
[1644546441396,0.03211511,42957.0,42956.0,0.051799]
[1644546441597,0.03211511,42957.0,42955.0,0.116472]
[1644546441797,0.03211511,42957.0,42956.0,0.326404]
[1644546442644,0.00221151,42965.0,42957.0,0.058236]
[1644546442645,0.326404,42964.0,42957.0,0.058236]
[1644546442944,0.326404,42960.0,42958.0,0.058236]
[1644546443144,0.326404,42959.0,42958.0,0.058236]
[1644546443344,0.058236,42962.0,42958.0,0.058236]
[1644546443549,0.00221151,42965.0,42958.0,0.058236]
[1644546443751,0.00221151,42965.0,42963.0,0.30838166]
[1644546443949,0.03214105,42966.0,42964.0,0.051743]
[1644546444350,0.03214105,42966.0,42965.0,0.20360338]
[1644546444549,0.00055288,42969.0,42965.0,0.85041716]
[1644546444749,0.00055288,42969.0,42966.0,0.109962]
[1644546444948,0.00055288,42969.0,42968.0,0.32633]
[1644546445147,0.18678773,42977.0,42968.0,0.32633]
[1644546445148,0.28785993,42974.0,42968.0,0.32633]
[1644546445348,0.28285993,42974.0,42970.0,0.051729]
[1644546445549,0.28285993,42974.0,42968.0,0.326404]
[1644546445751,0.28285993,42974.0,42968.0,0.05]
[1644546445949,0.28285993,42974.0,42965.0,0.42045878]
[1644546446152,0.058223,42972.0,42968.0,0.051675]
[1644546446399,0.058223,42972.0,42970.0,0.058223]
[1644546446594,0.058223,42972.0,42971.0,0.326364]
[1644546446793,0.05876509,42972.0,42971.0,0.326364]
[1644546447394,0.00054209,42972.0,42971.0,0.326364]
[1644546447594,0.326404,42974.0,42970.0,0.058223]
[1644546447795,0.32694608,42974.0,42971.0,0.058222]
[1644546447995,0.00054208,42974.0,42971.0,0.058222]
[1644546448198,0.00054208,42974.0,42968.0,0.10822234]
[1644546448199,0.326404,42973.0,42965.0,0.166451]
[1644546448394,0.326404,42973.0,42965.0,0.05]
[1644546448395,0.384627,42973.0,42965.0,0.05]
[1644546448594,0.384627,42973.0,42960.0,0.5]
[1644546448800,0.058223,42973.0,42961.0,0.326404]
[1644546448994,0.058223,42973.0,42966.0,0.058229]
[1644546448995,0.00052986,42971.0,42966.0,0.058229]
[1644546449194,0.37411252,42970.0,42966.0,0.058229]
[1644546449394,0.37411252,42970.0,42967.0,0.326404]
[1644546449694,0.43223752,42970.0,42967.0,0.326404]
[1644546449894,0.058225,42970.0,42967.0,0.326404]
[1644546450743,0.058225,42970.0,42968.0,0.051669]
[1644546450941,0.058225,42970.0,42967.0,0.108225]
[1644546451446,0.058225,42970.0,42967.0,0.058225]
[1644546452044,0.00052986,42971.0,42968.0,0.326404]
[1644546452442,0.24990442,42975.0,42969.0,0.051656]
[1644546452742,0.24990442,42975.0,42969.0,0.326404]
[1644546452743,0.00053298,42971.0,42969.0,0.326404]
[1644546453544,0.058222,42973.0,42969.0,0.442843]
[1644546453743,0.058222,42973.0,42971.0,0.051645]
[1644546453999,0.00053298,42972.0,42971.0,0.051645]
[1644546454793,0.05822,42974.0,42973.0,0.31640444]
[1644546454994,0.05875297,42974.0,42973.0,0.64277744]
[1644546455196,0.00053297,42974.0,42973.0,0.64277744]
[1644546455397,0.00053297,42974.0,42973.0,0.69277744]
[1644546455997,0.0321993,42977.0,42974.0,0.051639]
[1644546456196,0.00053221,42976.0,42974.0,0.058214]
[1644546456397,0.00053221,42976.0,42974.0,0.17464169]
[1644546456797,0.00053221,42976.0,42975.0,0.326404]
[1644546457196,0.0321993,42977.0,42975.0,0.326404]
[1644546457398,0.0321993,42977.0,42974.0,0.17464169]
[1644546457845,0.0321993,42977.0,42974.0,0.166428]
[1644546458045,0.0321993,42977.0,42975.0,0.3846151]
[1644546458344,0.0321993,42977.0,42976.0,0.051588]
[1644546458542,0.00027555,42984.0,42977.0,0.058208]
[1644546458742,0.00053221,42978.0,42977.0,0.326404]
[1644546459145,0.00053221,42978.0,42977.0,0.376404]
[1644546459843,0.00053238,42980.0,42978.0,0.058212]
[1644546460043,0.32693638,42980.0,42978.0,0.058212]
[1644546460845,0.326404,42980.0,42978.0,0.058212]
[1644546461246,0.00053237,42981.0,42978.0,0.058212]
[1644546462099,0.52724413,42983.0,42979.0,0.11641176]
[1644546462299,0.00053237,42982.0,42980.0,0.058209]
[1644546463199,0.326404,42981.0,42980.0,0.058209]
[1644546463401,0.15458843,42984.0,42976.0,0.30633174]
[1644546463603,0.15458843,42984.0,42979.0,0.05]
[1644546463604,0.00053233,42983.0,42979.0,0.05]
[1644546463798,0.00053233,42983.0,42980.0,0.051561]
[1644546463999,0.00053233,42983.0,42980.0,0.37763152]
[1644546464202,0.00053233,42983.0,42980.0,0.47763152]
[1644546464400,0.00027555,42986.0,42982.0,0.058201]
[1644546464599,0.36008055,42989.0,42984.0,0.326347]
[1644546464600,0.26947802,42985.0,42984.0,0.326347]
[1644546464799,0.26920247,42985.0,42984.0,0.05]
[1644546464999,0.26920247,42985.0,42982.0,0.05]
[1644546465244,0.26920247,42985.0,42974.0,0.37847515]
[1644546465445,0.26920247,42985.0,42978.0,0.116414]
[1644546465645,2.73801507,42984.0,42981.0,0.058207]
[1644546465848,0.00053233,42982.0,42981.0,0.058207]
[1644546466146,0.31229606,42982.0,42981.0,0.058207]
[1644546466748,0.00027555,42986.0,42981.0,0.384611]
[1644546466946,0.00027555,42987.0,42982.0,0.109731]
[1644546467147,0.00053273,42984.0,42982.0,0.058205]
[1644546467346,0.00053273,42984.0,42983.0,0.326404]
[1644546467748,0.00053273,42984.0,42983.0,0.426404]
[1644546467947,0.00027555,42987.0,42983.0,0.426404]
[1644546468148,0.06671845,42988.0,42985.0,0.051505]
[1644546468347,0.06671845,42988.0,42985.0,0.058203]
[1644546468348,0.00053273,42986.0,42985.0,0.058203]
[1644546469194,0.058202,42987.0,42985.0,0.058203]
[1644546469798,0.326404,42986.0,42981.0,0.23]
[1644546470394,0.00027565,42987.0,42982.0,0.326404]
[1644546470395,0.058208,42985.0,42982.0,0.326404]
[1644546470595,0.058208,42985.0,42981.0,0.23]
[1644546470895,0.0005323,42986.0,42982.0,0.326404]
[1644546471194,0.0005323,42986.0,42984.0,0.051514]
[1644546471396,0.00080795,42986.0,42984.0,0.051514]
[1644546471595,0.058204,42985.0,42984.0,0.051514]
[1644546472196,0.00080795,42987.0,42984.0,0.109719]
[1644546472395,0.0005323,42987.0,42984.0,0.109719]
[1644546472647,0.0005323,42987.0,42986.0,0.3329511]
[1644546472848,0.06671855,42988.0,42986.0,0.70924746]
[1644546472849,0.0664429,42988.0,42986.0,0.70924746]
[1644546473046,0.0664429,42988.0,42987.0,0.15970159]
[1644546473047,0.0669752,42988.0,42987.0,0.15970159]
[1644546473246,0.0669752,42988.0,42987.0,0.20970159]
[1644546473446,0.0669752,42988.0,42987.0,0.151507]
[1644546473847,0.0669752,42988.0,42987.0,0.101507]
[1644546474046,0.0664429,42988.0,42987.0,0.151507]
[1644546474250,0.0664429,42988.0,42987.0,0.101507]
[1644546475248,0.0664429,42988.0,42987.0,0.15970457]
[1644546475549,0.0664429,42988.0,42987.0,0.20970457]
[1644546475748,0.0664429,42988.0,42987.0,0.15819757]
[1644546476403,0.0664429,42988.0,42984.0,0.07785407]
[1644546476600,0.0664429,42988.0,42983.0,0.23278304]
[1644546476901,0.06671855,42988.0,42983.0,0.23278304]
[1644546477303,0.06671855,42988.0,42985.0,0.058195]
[1644546477499,0.1246459,42988.0,42985.0,0.058195]
[1644546477899,0.12517822,42988.0,42985.0,0.058195]
[1644546478801,0.1246459,42988.0,42985.0,0.058195]
[1644546480249,0.0664429,42988.0,42985.0,0.058195]
[1644546480449,0.0664429,42988.0,42986.0,0.326404]
[1644546480851,0.0664429,42988.0,42987.0,0.051475]
[1644546481250,0.0664429,42988.0,42987.0,0.15967549]
[1644546481650,0.30604711,42993.0,42987.0,0.15967549]